fUSD/lending_fUSD_20260516
["ID","MTS","AMOUNT","RATE_DAILY","PERIOD"]
[422398549,1778935860000,-352.0203254,0.00018355,2]
[422398551,1778935860000,-313.34557671,0.000184,2]
[422398529,1778935860000,-2452.0,0.0001805,2]
[422398554,1778935860000,-297.445769,0.00018438,2]
[422398540,1778935860000,-747.8093786,0.00018259,2]
[422398530,1778935860000,-3684.0,0.0001805,2]
[422398516,1778935860000,-622.44,0.00018,2]
[422398531,1778935860000,-983.0,0.0001805,2]
[422398557,1778935860000,-254.0,0.00018615,2]
[422398504,1778935860000,-150.0,0.00017959,2]
[422398502,1778935860000,-150.0,0.00017959,2]
[422398507,1778935860000,-300.0,0.00017999,2]
[422398505,1778935860000,-150.0,0.00017959,2]
[422398506,1778935860000,-150.0,0.00017959,2]
[422398501,1778935860000,-151.0,0.00017864,2]
[422398500,1778935860000,-500.0,0.00017808,2]
[422398511,1778935860000,-161.81,0.00018,2]
[422398508,1778935860000,-44755.17291504,0.00018,2]
[422398512,1778935860000,-4837.63552595,0.00018,3]
[422398510,1778935860000,-161.81,0.00018,2]
[422398513,1778935860000,-110764.11664392,0.00018,2]
[422398509,1778935860000,-161.83,0.00018,2]
[422398514,1778935860000,-313.34557671,0.00018,2]
[422398515,1778935860000,-957.74607085,0.00018,2]
[422398517,1778935860000,-350.0,0.00018,2]
[422398518,1778935860000,-151.0,0.00018,2]
[422398519,1778935860000,-200.0,0.00018,2]
[422398524,1778935860000,-1918.0,0.0001805,2]
[422398520,1778935860000,-2501.0,0.0001805,2]
[422398522,1778935860000,-1043.0,0.0001805,2]
[422398523,1778935860000,-594.0,0.0001805,2]
[422398525,1778935860000,-340.0,0.0001805,2]
[422398527,1778935860000,-249.0,0.0001805,2]
[422398528,1778935860000,-724.0,0.0001805,2]
[422398558,1778935860000,-2000.0,0.00018674,2]
[422398503,1778935860000,-150.0,0.00017959,2]
[422398556,1778935860000,-957.74607085,0.000185,2]
[422398590,1778935860000,-2000.0,0.00018865,2]
[422398589,1778935860000,-2000.0,0.00018865,2]
[422398591,1778935860000,-1817.0,0.00018865,2]
[422398592,1778935860000,-1300.0,0.00018865,2]
[422398593,1778935860000,-1300.0,0.00018865,2]
[422398594,1778935860000,-1167.0,0.00018865,2]
[422398595,1778935860000,-2000.0,0.00018866,2]
[422398598,1778935860000,-2000.0,0.00018866,2]
[422398597,1778935860000,-2000.0,0.00018866,2]
[422398596,1778935860000,-2000.0,0.00018866,2]
[422398610,1778935860000,-2000.0,0.00018867,2]
[422398600,1778935860000,-2000.0,0.00018866,2]
[422398584,1778935860000,-150.0,0.00018865,2]
[422398611,1778935860000,-2000.0,0.00018867,2]
[422398599,1778935860000,-2000.0,0.00018866,2]
[422398602,1778935860000,-2000.0,0.00018866,2]
[422398603,1778935860000,-2000.0,0.00018866,2]
[422398606,1778935860000,-2000.0,0.00018866,2]
[422398605,1778935860000,-2000.0,0.00018866,2]
[422398604,1778935860000,-2000.0,0.00018866,2]
[422398607,1778935860000,-2000.0,0.00018866,2]
[422398608,1778935860000,-2000.0,0.00018867,2]
[422398609,1778935860000,-2000.0,0.00018867,2]
[422398613,1778935860000,-2000.0,0.00018867,2]
[422398614,1778935860000,-2000.0,0.00018867,2]
[422398559,1778935860000,-313.34557671,0.000187,2]
[422398601,1778935860000,-2000.0,0.00018866,2]
[422398587,1778935860000,-150.0,0.00018865,2]
[422398612,1778935860000,-2000.0,0.00018867,2]
[422398585,1778935860000,-295.0,0.00018865,2]
[422398586,1778935860000,-279.0,0.00018865,2]
[422398555,1778935860000,-313.34557671,0.000185,2]
[422398563,1778935860000,-200.0,0.00018808,2]
[422398564,1778935860000,-200.0,0.00018808,2]
[422398560,1778935860000,-957.74607085,0.000187,2]
[422398562,1778935860000,-181.5932009,0.00018808,15]
[422398561,1778935860000,-250.69,0.00018766,2]
[422398567,1778935860000,-479.97313958,0.0001881,2]
[422398566,1778935860000,-2586.85809042,0.00018808,2]
[422398572,1778935860000,-200.0,0.00018864,2]
[422398571,1778935860000,-200.0,0.00018864,2]
[422398568,1778935860000,-200.0,0.00018864,2]
[422398570,1778935860000,-200.0,0.00018864,2]
[422398565,1778935860000,-217.15233878,0.00018808,2]
[422398573,1778935860000,-200.0,0.00018864,2]
[422398583,1778935860000,-150.0,0.00018865,2]
[422398588,1778935860000,-215.0,0.00018865,2]
[422398582,1778935860000,-150.0,0.00018865,2]
[422398569,1778935860000,-200.0,0.00018864,2]
[422398581,1778935860000,-314.0,0.00018864,2]
[422398578,1778935860000,-200.0,0.00018864,2]
[422398579,1778935860000,-200.0,0.00018864,2]
[422398577,1778935860000,-200.0,0.00018864,2]
[422398575,1778935860000,-200.0,0.00018864,2]
[422398576,1778935860000,-200.0,0.00018864,2]
[422398574,1778935860000,-260.0,0.00018864,2]
[422398580,1778935860000,-200.0,0.00018864,2]
[422398656,1778935861000,-69888.34233551,0.00019,2]
[422398655,1778935861000,-5231.1380299,0.00019,2]
[422398648,1778935861000,-151.0,0.00018883,2]
[422398652,1778935861000,-486.98,0.00018944,2]
[422398643,1778935861000,-1629.0,0.0001887,2]
[422398650,1778935861000,-1600.0,0.000189,6]
[422398654,1778935861000,-400.0,0.0001897,2]
[422398646,1778935861000,-2000.0,0.00018871,2]
[422398645,1778935861000,-2000.0,0.00018871,2]
[422398647,1778935861000,-2000.0,0.00018871,2]
[422398644,1778935861000,-2000.0,0.00018871,2]
[422398668,1778935861000,-2452.0,0.0001905,2]
[422398651,1778935861000,-486.98,0.00018944,2]
[422398653,1778935861000,-486.98,0.00018944,2]
[422398658,1778935861000,-4646.51400063,0.00019,2]
[422398669,1778935861000,-3684.0,0.0001905,2]
[422398657,1778935861000,-536.54568531,0.00019,2]
[422398665,1778935861000,-1044.0,0.0001905,2]
[422398667,1778935861000,-724.0,0.0001905,2]
[422398659,1778935861000,-2501.0,0.0001905,2]
[422398660,1778935861000,-1314.0,0.0001905,2]
[422398663,1778935861000,-1918.0,0.0001905,2]
[422398641,1778935861000,-1650.0,0.0001887,2]
[422398649,1778935861000,-158.0,0.000189,4]
[422398633,1778935861000,-2000.0,0.00018869,2]
[422398624,1778935861000,-2000.0,0.00018869,2]
[422398636,1778935861000,-1650.0,0.0001887,2]
[422398662,1778935861000,-594.0,0.0001905,2]
[422398615,1778935861000,-2000.0,0.00018867,2]
[422398616,1778935861000,-2000.0,0.00018869,2]
[422398617,1778935861000,-2000.0,0.00018869,2]
[422398618,1778935861000,-2000.0,0.00018869,2]
[422398621,1778935861000,-2000.0,0.00018869,2]
[422398620,1778935861000,-2000.0,0.00018869,2]
[422398622,1778935861000,-2000.0,0.00018869,2]
[422398628,1778935861000,-2000.0,0.00018869,2]
[422398619,1778935861000,-2000.0,0.00018869,2]
[422398629,1778935861000,-2000.0,0.00018869,2]
[422398639,1778935861000,-1650.0,0.0001887,2]
[422398625,1778935861000,-2000.0,0.00018869,2]
[422398623,1778935861000,-2000.0,0.00018869,2]
[422398627,1778935861000,-2000.0,0.00018869,2]
[422398630,1778935861000,-2000.0,0.00018869,2]
[422398631,1778935861000,-2000.0,0.00018869,2]
[422398642,1778935861000,-1650.0,0.0001887,2]
[422398635,1778935861000,-1650.0,0.0001887,2]
[422398637,1778935861000,-1650.0,0.0001887,2]
[422398634,1778935861000,-1650.0,0.0001887,2]
[422398632,1778935861000,-2000.0,0.00018869,2]
[422398640,1778935861000,-1650.0,0.0001887,2]
[422398638,1778935861000,-1650.0,0.0001887,2]
[422398626,1778935861000,-2000.0,0.00018869,2]
[422398666,1778935861000,-249.0,0.0001905,2]
[422398661,1778935861000,-1043.0,0.0001905,2]
[422398670,1778935861000,-983.0,0.0001905,2]
[422398698,1778935861000,-230.255192,0.00019178,2]
[422398703,1778935861000,-230.255192,0.00019178,2]
[422398708,1778935861000,-1498.88064888,0.00019302,2]
[422398709,1778935861000,-200.0,0.00019356,2]
[422398701,1778935861000,-230.255192,0.00019178,2]
[422398702,1778935861000,-230.255192,0.00019178,2]
[422398707,1778935861000,-151.0,0.00019277,2]
[422398704,1778935861000,-230.255192,0.00019178,2]
[422398705,1778935861000,-230.255192,0.00019178,2]
[422398706,1778935861000,-230.255185,0.00019178,2]
[422398721,1778935861000,-378.0,0.00019478,2]
[422398700,1778935861000,-230.255192,0.00019178,2]
[422398711,1778935861000,-225.18697532,0.00019356,2]
[422398712,1778935861000,-2682.57183977,0.00019356,2]
[422398715,1778935861000,-152.11,0.00019452,30]
[422398714,1778935861000,-198.85,0.00019452,30]
[422398716,1778935861000,-152.11,0.00019452,30]
[422398718,1778935861000,-171.32,0.00019452,30]
[422398719,1778935861000,-171.33,0.00019452,30]
[422398720,1778935861000,-5620.0,0.00019463,7]
[422398717,1778935861000,-152.1,0.00019452,30]
[422398722,1778935861000,-625.39,0.000197,2]
[422398723,1778935861000,-186.0,0.00019721,2]
[422398664,1778935861000,-340.0,0.0001905,2]
[422398710,1778935861000,-200.0,0.00019356,2]
[422398697,1778935861000,-230.255192,0.00019178,2]
[422398713,1778935861000,-365.0,0.00019439,2]
[422398692,1778935861000,-230.255192,0.00019178,2]
[422398671,1778935861000,-1029.0,0.0001905,2]
[422398699,1778935861000,-230.255192,0.00019178,2]
[422398681,1778935861000,-151.0,0.00019178,2]
[422398672,1778935861000,-970.9,0.00019086,2]
[422398682,1778935861000,-151.0,0.00019178,2]
[422398678,1778935861000,-151.0,0.00019178,2]
[422398673,1778935861000,-255.66,0.000191,14]
[422398679,1778935861000,-151.0,0.00019178,2]
[422398676,1778935861000,-160.93281423,0.00019178,7]
[422398677,1778935861000,-18345.59,0.00019178,2]
[422398680,1778935861000,-151.0,0.00019178,2]
[422398675,1778935861000,-3000.0,0.00019178,2]
[422398674,1778935861000,-3621.19528733,0.00019101,4]
[422398685,1778935861000,-151.0,0.00019178,2]
[422398695,1778935861000,-230.255192,0.00019178,2]
[422398694,1778935861000,-230.255192,0.00019178,2]
[422398696,1778935861000,-230.255192,0.00019178,2]
[422398683,1778935861000,-157.278708,0.00019178,2]
[422398686,1778935861000,-152.939565,0.00019178,2]
[422398690,1778935861000,-230.255192,0.00019178,2]
[422398688,1778935861000,-230.255192,0.00019178,2]
[422398689,1778935861000,-230.255192,0.00019178,2]
[422398687,1778935861000,-230.255192,0.00019178,2]
[422398691,1778935861000,-230.255192,0.00019178,2]
[422398693,1778935861000,-230.255192,0.00019178,2]
[422398684,1778935861000,-151.0,0.00019178,2]
[422398768,1778935862000,-5000.0,0.0002,10]
[422398758,1778935862000,-2000.0,0.0002,2]
[422398763,1778935862000,-5000.0,0.0002,10]
[422398767,1778935862000,-5000.0,0.0002,10]
[422398766,1778935862000,-5000.0,0.0002,10]
[422398762,1778935862000,-5000.0,0.0002,10]
[422398756,1778935862000,-1668.76,0.0002,30]
[422398764,1778935862000,-2000.0,0.0002,10]
[422398771,1778935862000,-5000.0,0.0002,10]
[422398761,1778935862000,-400.0,0.0002,2]
[422398752,1778935862000,-852.0,0.0002,2]
[422398769,1778935862000,-5000.0,0.0002,10]
[422398760,1778935862000,-6111.0,0.0002,2]
[422398765,1778935862000,-206.53,0.0002,5]
[422398773,1778935862000,-193.725,0.0002,2]
[422398772,1778935862000,-200.0,0.0002,10]
[422398775,1778935862000,-200.0,0.0002,2]
[422398782,1778935862000,-2000.0,0.0002002,2]
[422398779,1778935862000,-5000.0,0.0002,10]
[422398778,1778935862000,-1000.0,0.0002,7]
[422398776,1778935862000,-150.20867956,0.0002,20]
[422398780,1778935862000,-820.001033,0.0002,2]
[422398781,1778935862000,-2000.0,0.0002001,2]
[422398774,1778935862000,-6652.05,0.0002,2]
[422398777,1778935862000,-5000.0,0.0002,10]
[422398784,1778935862000,-2501.0,0.0002005,2]
[422398783,1778935862000,-2859.620193,0.0002003,2]
[422398757,1778935862000,-1299.232999,0.0002,30]
[422398770,1778935862000,-5000.0,0.0002,10]
[422398755,1778935862000,-506.57343798,0.0002,10]
[422398728,1778935862000,-200.0,0.00019904,2]
[422398754,1778935862000,-212.94,0.0002,2]
[422398724,1778935862000,-491.0,0.00019759,2]
[422398725,1778935862000,-784.56,0.000198,2]
[422398733,1778935862000,-489.4,0.00019968,2]
[422398729,1778935862000,-233.51889341,0.00019904,2]
[422398726,1778935862000,-181.5932009,0.00019824,19]
[422398727,1778935862000,-200.0,0.00019904,2]
[422398730,1778935862000,-2781.82699784,0.00019904,2]
[422398785,1778935862000,-1314.0,0.0002005,2]
[422398732,1778935862000,-973.43,0.00019968,2]
[422398731,1778935862000,-576.0,0.0001992,2]
[422398735,1778935862000,-405.10645775,0.00019999,2]
[422398734,1778935862000,-500.0,0.00019999,2]
[422398746,1778935862000,-500.0,0.00019999,2]
[422398736,1778935862000,-395.56151902,0.00019999,2]
[422398747,1778935862000,-500.0,0.00019999,2]
[422398741,1778935862000,-500.0,0.00019999,2]
[422398745,1778935862000,-500.0,0.00019999,2]
[422398737,1778935862000,-500.0,0.00019999,2]
[422398739,1778935862000,-500.0,0.00019999,2]
[422398738,1778935862000,-616.59391918,0.00019999,2]
[422398740,1778935862000,-470.68028315,0.00019999,2]
[422398743,1778935862000,-500.0,0.00019999,2]
[422398744,1778935862000,-500.0,0.00019999,2]
[422398742,1778935862000,-500.0,0.00019999,2]
[422398749,1778935862000,-1980.0,0.0002,2]
[422398759,1778935862000,-15000.0,0.0002,2]
[422398750,1778935862000,-162.98180263,0.0002,14]
[422398748,1778935862000,-500.0,0.00019999,2]
[422398751,1778935862000,-714.0,0.0002,2]
[422398753,1778935862000,-300.00000001,0.0002,2]
[422398795,1778935862000,-983.0,0.0002005,2]
[422398843,1778935862000,-251.11897888,0.00021,2]
[422398787,1778935862000,-594.0,0.0002005,2]
[422398820,1778935862000,-500.0,0.00020998,2]
[422398819,1778935862000,-775.47832561,0.00020998,2]
[422398818,1778935862000,-621.78829552,0.00020998,2]
[422398825,1778935862000,-1508.0666812,0.00021,2]
[422398827,1778935862000,-6111.0,0.00021,2]
[422398834,1778935862000,-3035.0,0.00021,2]
[422398826,1778935862000,-15000.0,0.00021,2]
[422398835,1778935862000,-474.77,0.00021,2]
[422398828,1778935862000,-15000.0,0.00021,2]
[422398830,1778935862000,-1323.08273352,0.00021,2]
[422398833,1778935862000,-1259.0,0.00021,7]
[422398837,1778935862000,-313.0,0.00021,2]
[422398831,1778935862000,-7941.42011554,0.00021,2]
[422398836,1778935862000,-10000.0,0.00021,2]
[422398829,1778935862000,-6111.0,0.00021,2]
[422398832,1778935862000,-525.17782738,0.00021,2]
[422398838,1778935862000,-5000.01,0.00021,2]
[422398842,1778935862000,-200.0,0.00021,2]
[422398841,1778935862000,-200.0,0.00021,2]
[422398840,1778935862000,-5000.01,0.00021,2]
[422398851,1778935862000,-1044.0,0.0002105,2]
[422398839,1778935862000,-5000.01,0.00021,2]
[422398849,1778935862000,-1918.0,0.0002105,2]
[422398850,1778935862000,-340.0,0.0002105,2]
[422398845,1778935862000,-2501.0,0.0002105,2]
[422398844,1778935862000,-2991.49051684,0.00021,2]
[422398848,1778935862000,-594.0,0.0002105,2]
[422398847,1778935862000,-1043.0,0.0002105,2]
[422398794,1778935862000,-3684.0,0.0002005,2]
[422398815,1778935862000,-150.0,0.00020959,2]
[422398817,1778935862000,-504.7,0.00020975,2]
[422398846,1778935862000,-1314.0,0.0002105,2]
[422398816,1778935862000,-150.0,0.00020959,2]
[422398797,1778935862000,-300.0,0.000201,10]
[422398796,1778935862000,-1029.0,0.0002005,2]
[422398790,1778935862000,-1044.0,0.0002005,2]
[422398786,1778935862000,-1043.0,0.0002005,2]
[422398793,1778935862000,-2452.0,0.0002005,2]
[422398788,1778935862000,-1918.0,0.0002005,2]
[422398789,1778935862000,-340.0,0.0002005,2]
[422398791,1778935862000,-249.0,0.0002005,2]
[422398821,1778935862000,-500.0,0.00021,2]
[422398798,1778935862000,-730.2591769,0.00020128,2]
[422398799,1778935862000,-2754.1,0.00020381,2]
[422398801,1778935862000,-200.0,0.00020452,2]
[422398800,1778935862000,-151.0,0.00020447,2]
[422398802,1778935862000,-200.0,0.00020452,2]
[422398792,1778935862000,-724.0,0.0002005,2]
[422398810,1778935862000,-150.0,0.00020785,2]
[422398809,1778935862000,-1354.0,0.00020785,2]
[422398822,1778935862000,-500.0,0.00021,2]
[422398813,1778935862000,-150.0,0.00020959,2]
[422398823,1778935862000,-500.0,0.00021,2]
[422398812,1778935862000,-290.44912144,0.00020841,22]
[422398814,1778935862000,-150.0,0.00020959,2]
[422398811,1778935862000,-1223.0,0.00020785,2]
[422398807,1778935862000,-150.43976418,0.0002058,2]
[422398808,1778935862000,-625.0,0.00020785,2]
[422398806,1778935862000,-19032.04,0.00020548,2]
[422398805,1778935862000,-250.69,0.00020472,2]
[422398804,1778935862000,-2884.75459676,0.00020452,2]
[422398803,1778935862000,-242.15909246,0.00020452,2]
[422398824,1778935862000,-182.42,0.00021,2]
[422398894,1778935863000,-349.89974606,0.00021617,2]
[422398905,1778935863000,-151.0,0.00021918,2]
[422398895,1778935863000,-1154.31581877,0.00021753,2]
[422398893,1778935863000,-182.3610033,0.00021548,2]
[422398891,1778935863000,-48409.74151165,0.000215,2]
[422398880,1778935863000,-203.0,0.00021379,2]
[422398887,1778935863000,-2000.0,0.0002138,2]
[422398882,1778935863000,-2000.0,0.0002138,2]
[422398888,1778935863000,-2000.0,0.0002138,2]
[422398884,1778935863000,-2000.0,0.0002138,2]
[422398889,1778935863000,-2000.0,0.0002138,2]
[422398890,1778935863000,-2000.0,0.0002138,2]
[422398892,1778935863000,-225.10022745,0.000215,2]
[422398916,1778935863000,-800.0,0.00021918,2]
[422398902,1778935863000,-261.1828,0.00021918,2]
[422398903,1778935863000,-3074.97,0.00021918,2]
[422398898,1778935863000,-289.0529305,0.00021918,3]
[422398896,1778935863000,-1154.31581877,0.00021836,2]
[422398899,1778935863000,-151.0,0.00021918,2]
[422398897,1778935863000,-6652.05,0.00021865,2]
[422398900,1778935863000,-151.0,0.00021918,2]
[422398901,1778935863000,-151.0,0.00021918,2]
[422398906,1778935863000,-151.0,0.00021918,2]
[422398914,1778935863000,-800.0,0.00021918,2]
[422398910,1778935863000,-151.0,0.00021918,2]
[422398907,1778935863000,-151.0,0.00021918,2]
[422398885,1778935863000,-2000.0,0.0002138,2]
[422398904,1778935863000,-5000.0,0.00021918,2]
[422398886,1778935863000,-2000.0,0.0002138,2]
[422398878,1778935863000,-200.0,0.00021379,2]
[422398879,1778935863000,-200.0,0.00021379,2]
[422398911,1778935863000,-165.407147,0.00021918,2]
[422398852,1778935863000,-249.0,0.0002105,2]
[422398854,1778935863000,-2452.0,0.0002105,2]
[422398853,1778935863000,-724.0,0.0002105,2]
[422398863,1778935863000,-2000.0,0.00021378,2]
[422398861,1778935863000,-2000.0,0.00021378,2]
[422398855,1778935863000,-3684.0,0.0002105,2]
[422398856,1778935863000,-983.0,0.0002105,2]
[422398864,1778935863000,-2000.0,0.00021378,2]
[422398860,1778935863000,-161.0,0.00021378,2]
[422398865,1778935863000,-2000.0,0.00021378,2]
[422398858,1778935863000,-297.37,0.00021367,2]
[422398857,1778935863000,-1029.0,0.0002105,2]
[422398883,1778935863000,-2000.0,0.0002138,2]
[422398859,1778935863000,-6463.45,0.0002137,2]
[422398866,1778935863000,-2000.0,0.00021378,2]
[422398877,1778935863000,-200.0,0.00021379,2]
[422398867,1778935863000,-2000.0,0.00021378,2]
[422398876,1778935863000,-200.0,0.00021379,2]
[422398875,1778935863000,-200.0,0.00021379,2]
[422398870,1778935863000,-2000.0,0.00021379,2]
[422398874,1778935863000,-2000.0,0.00021379,2]
[422398868,1778935863000,-2000.0,0.00021379,2]
[422398873,1778935863000,-2000.0,0.00021379,2]
[422398869,1778935863000,-2000.0,0.00021379,2]
[422398872,1778935863000,-2000.0,0.00021379,2]
[422398871,1778935863000,-2000.0,0.00021379,2]
[422398881,1778935863000,-2000.0,0.0002138,2]
[422398862,1778935863000,-2000.0,0.00021378,2]
[422398908,1778935863000,-151.0,0.00021918,2]
[422398922,1778935863000,-800.0,0.00021918,2]
[422398913,1778935863000,-800.0,0.00021918,2]
[422398948,1778935863000,-2452.0,0.0002205,2]
[422398947,1778935863000,-724.0,0.0002205,2]
[422398951,1778935863000,-1029.0,0.0002205,2]
[422398950,1778935863000,-983.0,0.0002205,2]
[422398953,1778935863000,-243.63814301,0.0002211,2]
[422398952,1778935863000,-1154.31581877,0.0002211,30]
[422398963,1778935863000,-299.30229324,0.00022465,2]
[422398954,1778935863000,-1154.31581877,0.00022192,30]
[422398955,1778935863000,-1154.31581877,0.00022274,30]
[422398958,1778935863000,-1154.31581877,0.00022384,30]
[422398957,1778935863000,-2754.1,0.00022353,2]
[422398961,1778935863000,-251.81798127,0.00022407,2]
[422398956,1778935863000,-616.86,0.00022342,2]
[422398949,1778935863000,-3684.0,0.0002205,2]
[422398960,1778935863000,-207.40921036,0.00022407,2]
[422398959,1778935863000,-207.40921037,0.00022407,2]
[422398964,1778935863000,-3400.65204067,0.00022465,2]
[422398966,1778935863000,-210.05692268,0.00022465,2]
[422398967,1778935863000,-1755.33,0.00022466,2]
[422398965,1778935863000,-197.91555615,0.00022465,4]
[422398968,1778935863000,-1572.99,0.00022466,2]
[422398915,1778935863000,-800.0,0.00021918,2]
[422398974,1778935863000,-1154.31581877,0.00022466,30]
[422398969,1778935863000,-1868.08,0.00022466,2]
[422398972,1778935863000,-1489.0,0.00022466,2]
[422398971,1778935863000,-316.48,0.00022466,2]
[422398975,1778935863000,-1132.30912651,0.000225,2]
[422398973,1778935863000,-477.9,0.00022466,2]
[422398962,1778935863000,-251.81798125,0.00022407,2]
[422398945,1778935863000,-1044.0,0.0002205,2]
[422398970,1778935863000,-282.34,0.00022466,2]
[422398944,1778935863000,-340.0,0.0002205,2]
[422398942,1778935863000,-594.0,0.0002205,2]
[422398909,1778935863000,-151.0,0.00021918,2]
[422398912,1778935863000,-800.0,0.00021918,2]
[422398923,1778935863000,-800.0,0.00021918,2]
[422398928,1778935863000,-1154.31581877,0.00021945,30]
[422398917,1778935863000,-800.0,0.00021918,2]
[422398918,1778935863000,-800.0,0.00021918,2]
[422398920,1778935863000,-800.0,0.00021918,2]
[422398919,1778935863000,-800.0,0.00021918,2]
[422398925,1778935863000,-800.0,0.00021918,2]
[422398926,1778935863000,-800.0,0.00021918,2]
[422398921,1778935863000,-800.0,0.00021918,2]
[422398927,1778935863000,-800.0,0.00021918,2]
[422398931,1778935863000,-500.61920959,0.00021999,2]
[422398924,1778935863000,-800.0,0.00021918,2]
[422398933,1778935863000,-165.79,0.00022,2]
[422398929,1778935863000,-1498.88064888,0.00021984,2]
[422398943,1778935863000,-1918.0,0.0002205,2]
[422398946,1778935863000,-249.0,0.0002205,2]
[422398938,1778935863000,-1154.31581877,0.00022027,30]
[422398930,1778935863000,-151.0,0.00021997,2]
[422398940,1778935863000,-1314.0,0.0002205,2]
[422398941,1778935863000,-1043.0,0.0002205,2]
[422398936,1778935863000,-450.0,0.00022,2]
[422398934,1778935863000,-119876.40162128,0.00022,4]
[422398932,1778935863000,-2023.39421763,0.00022,2]
[422398937,1778935863000,-449.71,0.00022,2]
[422398935,1778935863000,-3603.188945,0.00022,30]
[422398939,1778935863000,-2501.0,0.0002205,2]
[422399000,1778935864000,-156.0,0.00023,30]
[422399019,1778935864000,-1200.0,0.00023255,7]
[422399003,1778935864000,-1314.39833639,0.0002305,2]
[422399007,1778935864000,-340.34580579,0.0002305,2]
[422399017,1778935864000,-2500.0,0.00023255,2]
[422399012,1778935864000,-3688.72611124,0.0002305,2]
[422399010,1778935864000,-725.13147767,0.0002305,2]
[422399008,1778935864000,-1045.47514207,0.0002305,2]
[422399006,1778935864000,-1931.27724586,0.0002305,2]
[422399011,1778935864000,-2463.96426354,0.0002305,2]
[422399018,1778935864000,-350.0,0.00023255,2]
[422399013,1778935864000,-985.77307124,0.0002305,2]
[422399015,1778935864000,-5915.68253376,0.00023149,5]
[422399014,1778935864000,-1035.89157137,0.0002305,2]
[422399016,1778935864000,-152.0,0.0002315,4]
[422399020,1778935864000,-600.0,0.00023356,2]
[422398976,1778935864000,-1154.31581877,0.00022548,30]
[422399023,1778935864000,-401.83511749,0.000235,2]
[422399021,1778935864000,-150.0,0.00023356,7]
[422399030,1778935864000,-625.0,0.00023785,2]
[422399002,1778935864000,-2509.24247352,0.0002305,2]
[422399009,1778935864000,-257.53699946,0.0002305,2]
[422398996,1778935864000,-156.0,0.00023,30]
[422398986,1778935864000,-155.0,0.00023,30]
[422398998,1778935864000,-156.0,0.00023,30]
[422398978,1778935864000,-1154.31581877,0.0002263,30]
[422398988,1778935864000,-155.0,0.00023,30]
[422398977,1778935864000,-625.39,0.000226,7]
[422398980,1778935864000,-152.0,0.00022835,3]
[422398987,1778935864000,-155.0,0.00023,30]
[422398979,1778935864000,-1154.31581877,0.00022712,30]
[422398981,1778935864000,-625.39,0.000229,7]
[422398984,1778935864000,-155.0,0.00023,30]
[422398983,1778935864000,-157.0,0.00023,30]
[422398982,1778935864000,-10000.0,0.00023,30]
[422398985,1778935864000,-155.0,0.00023,30]
[422398990,1778935864000,-162.0,0.00023,30]
[422398989,1778935864000,-155.0,0.00023,30]
[422398993,1778935864000,-156.0,0.00023,30]
[422398992,1778935864000,-156.0,0.00023,30]
[422398991,1778935864000,-156.0,0.00023,30]
[422398994,1778935864000,-156.0,0.00023,30]
[422398995,1778935864000,-156.0,0.00023,30]
[422398999,1778935864000,-156.0,0.00023,30]
[422399004,1778935864000,-1062.24741556,0.0002305,2]